[Event "Titled Tuesday Blitz July 11 Early 2023"]
[White "Villuendas Valero, Adrian"]
[Black "Lorparizangeneh, Shahin"]
[WhiteFideId "2262460"]
[BlackFideId "12521604"]
[WhiteElo "2403"]
[BlackElo "2683"]
[Result "0-1"]
[Round "1"]
[TimeControl "180+2"]
[Date "2023.07.11"]
[WhiteClock "0:00:10"]
[BlackClock "0:01:59"]
[Board "95"]

1. e4 {[%clk 0:02:58]}  e5 {[%clk 0:02:59]} 2. Nf3 {[%clk 0:02:58]}  Nc6 {[%clk 0:02:59]} 3. Bc4 {[%clk 0:02:59]}  Nf6 {[%clk 0:02:59]} 4. d3 {[%clk 0:02:58]}  Be7 {[%clk 0:02:58]} 5. O-O {[%clk 0:02:56]}  O-O {[%clk 0:02:59]} 6. c3 {[%clk 0:02:52]}  d6 {[%clk 0:02:58]} 7. h3 {[%clk 0:02:51]}  Na5 {[%clk 0:02:58]} 8. Bb5 {[%clk 0:02:49]}  a6 {[%clk 0:02:56]} 9. Ba4 {[%clk 0:02:49]}  b5 {[%clk 0:02:57]} 10. Bc2 {[%clk 0:02:50]}  c5 {[%clk 0:02:58]} 11. Nbd2 {[%clk 0:02:45]}  Re8 {[%clk 0:02:55]} 12. Re1 {[%clk 0:02:45]}  Bf8 {[%clk 0:02:55]} 13. Nf1 {[%clk 0:02:43]}  Nc6 {[%clk 0:02:51]} 14. Ng3 {[%clk 0:02:41]}  d5 {[%clk 0:02:51]} 15. a4 {[%clk 0:02:32]}  b4 {[%clk 0:02:45]} 16. Bg5 {[%clk 0:02:16]}  bxc3 {[%clk 0:02:39]} 17. bxc3 {[%clk 0:02:10]}  d4 {[%clk 0:02:39]} 18. cxd4 {[%clk 0:02:03]}  cxd4 {[%clk 0:02:40]} 19. Nh5 {[%clk 0:01:58]}  Be7 {[%clk 0:02:35]} 20. Nxf6+ {[%clk 0:01:40]}  Bxf6 {[%clk 0:02:36]} 21. Bxf6 {[%clk 0:01:36]}  Qxf6 {[%clk 0:02:37]} 22. a5 {[%clk 0:01:36]}  Be6 {[%clk 0:02:26]} 23. Nd2 {[%clk 0:01:29]}  Nb4 {[%clk 0:02:23]} 24. Rb1 {[%clk 0:01:15]}  Rab8 {[%clk 0:02:14]} 25. Nb3 {[%clk 0:00:58]}  Rec8 {[%clk 0:02:11]} 26. Re2 {[%clk 0:00:48]}  Rc3 {[%clk 0:02:07]} 27. Nc1 {[%clk 0:00:39]}  Qd8 {[%clk 0:02:04]} 28. Bb3 {[%clk 0:00:33]}  Nxd3 {[%clk 0:02:02]} 29. Bxe6 {[%clk 0:00:27]}  Rxb1 {[%clk 0:02:01]} 30. Bxf7+ {[%clk 0:00:21]}  Kxf7 {[%clk 0:02:01]} 31. Rc2 {[%clk 0:00:11]}  Rxc1 {[%clk 0:01:59]} 32. Rxc1 {[%clk 0:00:10]}  Rxc1 {[%clk 0:01:58]} 33. Qxc1 {[%clk 0:00:10]}  Nxc1 {[%clk 0:01:59]} 0-1


[Site "https://www.chess.com"]

[Event "Titled Tuesday Blitz July 11 Early 2023"]
[White "Liyanage, Ranindu Dilshan"]
[Black "Fule, Simon"]
[WhiteFideId "9915834"]
[BlackFideId "787515"]
[WhiteElo "2661"]
[BlackElo "2390"]
[Result "1/2-1/2"]
[Round "1"]
[TimeControl "180+2"]
[Date "2023.07.11"]
[WhiteClock "0:00:07"]
[BlackClock "0:00:06"]
[Board "102"]

1. Nf3 {[%clk 0:02:56]}  Nf6 {[%clk 0:02:59]} 2. c4 {[%clk 0:02:56]}  d6 {[%clk 0:02:57]} 3. e3 {[%clk 0:02:57]}  e5 {[%clk 0:02:54]} 4. b3 {[%clk 0:02:58]}  g6 {[%clk 0:02:52]} 5. Bb2 {[%clk 0:02:56]}  Bg7 {[%clk 0:02:52]} 6. d3 {[%clk 0:02:56]}  O-O {[%clk 0:02:49]} 7. Be2 {[%clk 0:02:56]}  Nc6 {[%clk 0:02:49]} 8. O-O {[%clk 0:02:56]}  Ne8 {[%clk 0:02:45]} 9. Nbd2 {[%clk 0:02:53]}  f5 {[%clk 0:02:45]} 10. Qc2 {[%clk 0:02:49]}  Nf6 {[%clk 0:02:45]} 11. a3 {[%clk 0:02:48]}  h6 {[%clk 0:02:40]} 12. d4 {[%clk 0:02:43]}  e4 {[%clk 0:02:39]} 13. Ne1 {[%clk 0:02:44]}  g5 {[%clk 0:02:36]} 14. f3 {[%clk 0:02:43]}  exf3 {[%clk 0:02:24]} 15. Ndxf3 {[%clk 0:02:35]}  Qe8 {[%clk 0:02:03]} 16. Qd3 {[%clk 0:02:30]}  Ne4 {[%clk 0:01:57]} 17. Nc2 {[%clk 0:02:18]}  Bd7 {[%clk 0:01:46]} 18. Rae1 {[%clk 0:02:17]}  Qg6 {[%clk 0:01:39]} 19. Ba1 {[%clk 0:02:06]}  Rae8 {[%clk 0:01:35]} 20. d5 {[%clk 0:02:04]}  Ne5 {[%clk 0:01:32]} 21. Qd1 {[%clk 0:01:55]}  c5 {[%clk 0:01:14]} 22. dxc6 {[%clk 0:01:53]}  bxc6 {[%clk 0:01:11]} 23. Ncd4 {[%clk 0:01:50]}  c5 {[%clk 0:01:07]} 24. Nb5 {[%clk 0:01:47]}  Ng4 {[%clk 0:01:01]} 25. Bxg7 {[%clk 0:01:41]}  Kxg7 {[%clk 0:00:49]} 26. Qc1 {[%clk 0:01:36]}  a6 {[%clk 0:00:35]} 27. Nc7 {[%clk 0:01:34]}  Rc8 {[%clk 0:00:30]} 28. Nd5 {[%clk 0:01:34]}  Bc6 {[%clk 0:00:27]} 29. Rd1 {[%clk 0:01:33]}  Bxd5 {[%clk 0:00:27]} 30. Rxd5 {[%clk 0:01:34]}  Qe6 {[%clk 0:00:24]} 31. Bd3 {[%clk 0:01:29]}  Rce8 {[%clk 0:00:21]} 32. Re1 {[%clk 0:01:25]}  Ngf6 {[%clk 0:00:19]} 33. Qa1 {[%clk 0:01:17]}  Kg8 {[%clk 0:00:18]} 34. Bxe4 {[%clk 0:01:11]}  fxe4 {[%clk 0:00:19]} 35. Nxg5 {[%clk 0:01:12]}  hxg5 {[%clk 0:00:12]} 36. Rxg5+ {[%clk 0:01:13]}  Kh7 {[%clk 0:00:12]} 37. Rf1 {[%clk 0:01:13]}  Rf7 {[%clk 0:00:08]} 38. Rgf5 {[%clk 0:01:02]}  Ref8 {[%clk 0:00:07]} 39. Qd1 {[%clk 0:01:03]}  Kg6 {[%clk 0:00:03]} 40. g4 {[%clk 0:00:50]}  Nd7 {[%clk 0:00:01]} 41. R5f4 {[%clk 0:00:43]}  Ne5 {[%clk 0:00:02]} 42. Qc2 {[%clk 0:00:31]}  Nd3 {[%clk 0:00:01]} 43. Rxf7 {[%clk 0:00:20]}  Rxf7 {[%clk 0:00:02]} 44. Rxf7 {[%clk 0:00:20]}  Qxf7 {[%clk 0:00:03]} 45. Qg2 {[%clk 0:00:21]}  Qe6 {[%clk 0:00:02]} 46. h4 {[%clk 0:00:21]}  Qe5 {[%clk 0:00:02]} 47. g5 {[%clk 0:00:14]}  Qa1+ {[%clk 0:00:02]} 48. Kh2 {[%clk 0:00:14]}  Qb2 {[%clk 0:00:02]} 49. Kh3 {[%clk 0:00:09]}  Qxg2+ {[%clk 0:00:02]} 50. Kxg2 {[%clk 0:00:10]}  Kh5 {[%clk 0:00:03]} 51. Kg3 {[%clk 0:00:11]}  Nc1 {[%clk 0:00:02]} 52. Kf4 {[%clk 0:00:11]}  Nxb3 {[%clk 0:00:02]} 53. Kxe4 {[%clk 0:00:12]}  Nd2+ {[%clk 0:00:03]} 54. Kd5 {[%clk 0:00:12]}  a5 {[%clk 0:00:02]} 55. a4 {[%clk 0:00:11]}  Kg6 {[%clk 0:00:02]} 56. e4 {[%clk 0:00:09]}  Kh5 {[%clk 0:00:02]} 57. Kxd6 {[%clk 0:00:10]}  Nxe4+ {[%clk 0:00:02]} 58. Kd5 {[%clk 0:00:10]}  Nc3+ {[%clk 0:00:03]} 59. Kxc5 {[%clk 0:00:10]}  Nxa4+ {[%clk 0:00:04]} 60. Kb5 {[%clk 0:00:10]}  Nb2 {[%clk 0:00:04]} 61. c5 {[%clk 0:00:10]}  a4 {[%clk 0:00:05]} 62. Kb4 {[%clk 0:00:10]}  a3 {[%clk 0:00:05]} 63. Kxa3 {[%clk 0:00:10]}  Nc4+ {[%clk 0:00:06]} 64. Kb4 {[%clk 0:00:10]}  Ne5 {[%clk 0:00:07]} 65. Kb5 {[%clk 0:00:10]}  Kxh4 {[%clk 0:00:07]} 66. g6 {[%clk 0:00:07]}  Nxg6 {[%clk 0:00:06]} 67. Kc6 {[%clk 0:00:07]}  Kg5 {[%clk 0:00:04]} 68. Kd6 {[%clk 0:00:05]}  Kf6 {[%clk 0:00:04]} 69. c6 {[%clk 0:00:05]}  Ne7 {[%clk 0:00:05]} 70. c7 {[%clk 0:00:05]}  Kf7 {[%clk 0:00:05]} 71. Kd7 {[%clk 0:00:06]}  Kf8 {[%clk 0:00:05]} 72. Kd8 {[%clk 0:00:06]}  Kf7 {[%clk 0:00:05]} 73. Kd7 {[%clk 0:00:07]}  Kf6 {[%clk 0:00:05]} 74. Ke8 {[%clk 0:00:07]}  Ke6 {[%clk 0:00:05]} 75. Kd8 {[%clk 0:00:08]}  Kd6 {[%clk 0:00:06]} 76. c8=Q {[%clk 0:00:07]}  Nxc8 {[%clk 0:00:06]} 1/2-1/2


[Site "https://www.chess.com"]

[Event "Titled Tuesday Blitz July 11 Early 2023"]
[White "Prydun, Andriy"]
[Black "Aslanov, Umid"]
[WhiteFideId "14145898"]
[BlackFideId "13412620"]
[WhiteElo "2387"]
[BlackElo "2654"]
[Result "0-1"]
[Round "1"]
[TimeControl "180+2"]
[Date "2023.07.11"]
[WhiteClock "0:00:21"]
[BlackClock "0:01:28"]
[Board "105"]

1. e4 {[%clk 0:02:56]}  c5 {[%clk 0:03:00]} 2. d4 {[%clk 0:02:49]}  cxd4 {[%clk 0:02:59]} 3. c3 {[%clk 0:02:50]}  d3 {[%clk 0:02:59]} 4. c4 {[%clk 0:02:50]}  g6 {[%clk 0:02:57]} 5. Nc3 {[%clk 0:02:50]}  Bg7 {[%clk 0:02:57]} 6. Bxd3 {[%clk 0:02:49]}  Nc6 {[%clk 0:02:57]} 7. Nf3 {[%clk 0:02:45]}  d6 {[%clk 0:02:57]} 8. h3 {[%clk 0:02:45]}  Nf6 {[%clk 0:02:57]} 9. O-O {[%clk 0:02:45]}  O-O {[%clk 0:02:57]} 10. Qd2 {[%clk 0:02:39]}  b6 {[%clk 0:02:53]} 11. b3 {[%clk 0:02:37]}  Bb7 {[%clk 0:02:53]} 12. Bb2 {[%clk 0:02:37]}  Nd7 {[%clk 0:02:43]} 13. Rad1 {[%clk 0:02:36]}  Nce5 {[%clk 0:02:40]} 14. Be2 {[%clk 0:02:27]}  Nxf3+ {[%clk 0:02:39]} 15. Bxf3 {[%clk 0:02:27]}  Nc5 {[%clk 0:02:31]} 16. Rfe1 {[%clk 0:02:18]}  Re8 {[%clk 0:02:26]} 17. h4 {[%clk 0:02:12]}  h5 {[%clk 0:02:24]} 18. Qc2 {[%clk 0:01:27]}  e6 {[%clk 0:02:20]} 19. Rd2 {[%clk 0:01:25]}  Qxh4 {[%clk 0:02:20]} 20. Rxd6 {[%clk 0:01:23]}  Be5 {[%clk 0:02:19]} 21. Rd2 {[%clk 0:01:14]}  Qh2+ {[%clk 0:02:12]} 22. Kf1 {[%clk 0:01:13]}  Bf4 {[%clk 0:02:12]} 23. Rdd1 {[%clk 0:01:12]}  Rad8 {[%clk 0:02:09]} 24. Ke2 {[%clk 0:01:09]}  Be5 {[%clk 0:01:55]} 25. Bc1 {[%clk 0:01:04]}  Qh4 {[%clk 0:01:51]} 26. g3 {[%clk 0:00:54]}  Qf6 {[%clk 0:01:51]} 27. Bb2 {[%clk 0:00:51]}  Nxe4 {[%clk 0:01:37]} 28. Nxe4 {[%clk 0:00:49]}  Bxe4 {[%clk 0:01:37]} 29. Rxd8 {[%clk 0:00:46]}  Qxf3+ {[%clk 0:01:34]} 30. Kf1 {[%clk 0:00:46]}  Qh1+ {[%clk 0:01:27]} 31. Ke2 {[%clk 0:00:21]}  Bf3+ {[%clk 0:01:28]} 0-1


[Site "https://www.chess.com"]

[Event "Titled Tuesday Blitz July 11 Early 2023"]
[White "Komov, Roman"]
[Black "Mayaud, Raphael"]
[WhiteFideId "24175714"]
[BlackFideId "627151"]
[WhiteElo "2651"]
[BlackElo "2386"]
[Result "1-0"]
[Round "1"]
[TimeControl "180+2"]
[Date "2023.07.11"]
[WhiteClock "0:00:38"]
[BlackClock "0:00:01"]
[Board "106"]

1. e4 {[%clk 0:03:00]}  d5 {[%clk 0:02:15]} 2. exd5 {[%clk 0:03:00]}  Qxd5 {[%clk 0:02:14]} 3. Nc3 {[%clk 0:02:59]}  Qa5 {[%clk 0:02:15]} 4. d4 {[%clk 0:02:59]}  c6 {[%clk 0:02:15]} 5. Nf3 {[%clk 0:02:59]}  Nf6 {[%clk 0:02:16]} 6. Bc4 {[%clk 0:02:56]}  Bf5 {[%clk 0:02:16]} 7. O-O {[%clk 0:02:51]}  e6 {[%clk 0:02:16]} 8. h3 {[%clk 0:02:51]}  Be7 {[%clk 0:02:14]} 9. Nh4 {[%clk 0:02:51]}  Bg6 {[%clk 0:02:14]} 10. Nxg6 {[%clk 0:02:48]}  hxg6 {[%clk 0:02:14]} 11. Ne2 {[%clk 0:02:45]}  Nbd7 {[%clk 0:02:13]} 12. c3 {[%clk 0:02:40]}  Qc7 {[%clk 0:02:07]} 13. a4 {[%clk 0:02:36]}  a5 {[%clk 0:01:59]} 14. Re1 {[%clk 0:02:36]}  O-O {[%clk 0:01:59]} 15. Nf4 {[%clk 0:02:19]}  Bd6 {[%clk 0:01:55]} 16. Qf3 {[%clk 0:02:12]}  Nd5 {[%clk 0:01:54]} 17. Nd3 {[%clk 0:02:02]}  Rfe8 {[%clk 0:01:44]} 18. Bd2 {[%clk 0:02:00]}  N7f6 {[%clk 0:01:43]} 19. h4 {[%clk 0:01:57]}  Rab8 {[%clk 0:01:32]} 20. g3 {[%clk 0:01:53]}  b5 {[%clk 0:01:30]} 21. Bb3 {[%clk 0:01:51]}  Nb6 {[%clk 0:00:58]} 22. axb5 {[%clk 0:01:46]}  a4 {[%clk 0:00:56]} 23. Bc2 {[%clk 0:01:41]}  cxb5 {[%clk 0:00:56]} 24. Bg5 {[%clk 0:01:41]}  Be7 {[%clk 0:00:51]} 25. Ne5 {[%clk 0:01:36]}  Nc4 {[%clk 0:00:50]} 26. Nxc4 {[%clk 0:01:29]}  Qxc4 {[%clk 0:00:50]} 27. Bxf6 {[%clk 0:01:20]}  Bxf6 {[%clk 0:00:49]} 28. h5 {[%clk 0:01:20]}  gxh5 {[%clk 0:00:47]} 29. Qxh5 {[%clk 0:01:21]}  g6 {[%clk 0:00:44]} 30. Qg4 {[%clk 0:01:15]}  Kg7 {[%clk 0:00:41]} 31. Kg2 {[%clk 0:01:08]}  e5 {[%clk 0:00:32]} 32. Rad1 {[%clk 0:00:49]}  exd4 {[%clk 0:00:32]} 33. Bd3 {[%clk 0:00:46]}  Qc5 {[%clk 0:00:17]} 34. cxd4 {[%clk 0:00:42]}  Bxd4 {[%clk 0:00:17]} 35. Rxe8 {[%clk 0:00:39]}  Rxe8 {[%clk 0:00:16]} 36. Bxg6 {[%clk 0:00:39]}  Qd5+ {[%clk 0:00:01]} 37. Be4+ {[%clk 0:00:38]} 1-0


[Site "https://www.chess.com"]

[Event "Titled Tuesday Blitz July 11 Early 2023"]
[White "Mejia, Cherry Ann"]
[Black "Vypkhaniuk, Ihor"]
[WhiteFideId "5206880"]
[BlackFideId "14112256"]
[WhiteElo "2380"]
[BlackElo "2648"]
[Result "0-1"]
[Round "1"]
[TimeControl "180+2"]
[Date "2023.07.11"]
[WhiteClock "0:00:00"]
[BlackClock "0:00:26"]
[Board "109"]

1. e4 {[%clk 0:02:59]}  d5 {[%clk 0:02:59]} 2. exd5 {[%clk 0:02:59]}  Nf6 {[%clk 0:02:59]} 3. Bb5+ {[%clk 0:02:58]}  Bd7 {[%clk 0:02:59]} 4. Be2 {[%clk 0:02:58]}  Nxd5 {[%clk 0:02:58]} 5. d4 {[%clk 0:02:57]}  Bf5 {[%clk 0:02:58]} 6. Nf3 {[%clk 0:02:55]}  e6 {[%clk 0:02:59]} 7. O-O {[%clk 0:02:55]}  Be7 {[%clk 0:02:53]} 8. c4 {[%clk 0:02:51]}  Nb4 {[%clk 0:02:52]} 9. Na3 {[%clk 0:02:51]}  O-O {[%clk 0:02:50]} 10. Bd2 {[%clk 0:02:49]}  a5 {[%clk 0:02:41]} 11. Bc3 {[%clk 0:02:47]}  Nd7 {[%clk 0:02:37]} 12. Qd2 {[%clk 0:02:34]}  Nf6 {[%clk 0:02:36]} 13. Rfd1 {[%clk 0:02:12]}  Ne4 {[%clk 0:02:33]} 14. Qe3 {[%clk 0:02:13]}  Nxc3 {[%clk 0:02:29]} 15. Qxc3 {[%clk 0:02:09]}  Bf6 {[%clk 0:02:23]} 16. h3 {[%clk 0:02:01]}  h6 {[%clk 0:02:21]} 17. Ne5 {[%clk 0:01:59]}  c6 {[%clk 0:02:19]} 18. Qe3 {[%clk 0:01:40]}  Qc7 {[%clk 0:02:14]} 19. f4 {[%clk 0:01:32]}  Rfd8 {[%clk 0:02:12]} 20. g4 {[%clk 0:01:30]}  Bh7 {[%clk 0:02:08]} 21. Bf3 {[%clk 0:01:15]}  Rf8 {[%clk 0:01:48]} 22. Rd2 {[%clk 0:01:15]}  Rad8 {[%clk 0:01:47]} 23. b3 {[%clk 0:01:13]}  Be7 {[%clk 0:01:42]} 24. Rad1 {[%clk 0:01:10]}  Qb6 {[%clk 0:01:36]} 25. c5 {[%clk 0:01:05]}  Qa6 {[%clk 0:01:32]} 26. Nac4 {[%clk 0:00:59]}  Nd5 {[%clk 0:01:28]} 27. Bxd5 {[%clk 0:00:53]}  Rxd5 {[%clk 0:01:18]} 28. Rg2 {[%clk 0:00:43]}  Bxc5 {[%clk 0:01:14]} 29. Kh2 {[%clk 0:00:29]}  Qa7 {[%clk 0:01:09]} 30. Rgd2 {[%clk 0:00:26]}  Be7 {[%clk 0:01:06]} 31. Qf3 {[%clk 0:00:22]}  a4 {[%clk 0:01:05]} 32. Ne3 {[%clk 0:00:21]}  Rdd8 {[%clk 0:01:04]} 33. f5 {[%clk 0:00:10]}  axb3 {[%clk 0:01:01]} 34. axb3 {[%clk 0:00:11]}  Qb6 {[%clk 0:00:58]} 35. Rd3 {[%clk 0:00:09]}  Qc7 {[%clk 0:00:52]} 36. Kg2 {[%clk 0:00:08]}  Bf6 {[%clk 0:00:49]} 37. N3c4 {[%clk 0:00:08]}  Rd5 {[%clk 0:00:46]} 38. Ne3 {[%clk 0:00:08]}  Rdd8 {[%clk 0:00:43]} 39. Qg3 {[%clk 0:00:08]}  Qd6 {[%clk 0:00:40]} 40. h4 {[%clk 0:00:08]}  exf5 {[%clk 0:00:38]} 41. gxf5 {[%clk 0:00:07]}  Kh8 {[%clk 0:00:35]} 42. N3g4 {[%clk 0:00:07]}  Qd5+ {[%clk 0:00:34]} 43. Qf3 {[%clk 0:00:08]}  Bxh4 {[%clk 0:00:31]} 44. f6 {[%clk 0:00:03]}  Bxf6 {[%clk 0:00:27]} 45. Nxf6 {[%clk 0:00:03]}  gxf6 {[%clk 0:00:27]} 46. Qxd5 {[%clk 0:00:02]}  Rxd5 {[%clk 0:00:27]} 47. Ng4 {[%clk 0:00:00]}  Bxd3 {[%clk 0:00:26]} 0-1


[Site "https://www.chess.com"]

[Event "Titled Tuesday Blitz July 11 Early 2023"]
[White "Makhmudov, Shukhrat"]
[Black "Perez Candelario, Manuel"]
[WhiteFideId "14200775"]
[BlackFideId "2210622"]
[WhiteElo "2379"]
[BlackElo "2646"]
[Result "0-1"]
[Round "1"]
[TimeControl "180+2"]
[Date "2023.07.11"]
[WhiteClock "0:01:04"]
[BlackClock "0:00:55"]
[Board "111"]

1. e4 {[%clk 0:03:00]}  c5 {[%clk 0:02:59]} 2. Nf3 {[%clk 0:03:00]}  g6 {[%clk 0:02:57]} 3. d4 {[%clk 0:03:00]}  cxd4 {[%clk 0:02:58]} 4. Nxd4 {[%clk 0:03:01]}  Nc6 {[%clk 0:02:58]} 5. Nxc6 {[%clk 0:03:01]}  bxc6 {[%clk 0:02:58]} 6. Qd4 {[%clk 0:03:02]}  Nf6 {[%clk 0:02:53]} 7. e5 {[%clk 0:03:02]}  Ng8 {[%clk 0:02:49]} 8. e6 {[%clk 0:03:01]}  Nf6 {[%clk 0:02:47]} 9. exd7+ {[%clk 0:03:00]}  Qxd7 {[%clk 0:02:40]} 10. Qxd7+ {[%clk 0:02:59]}  Bxd7 {[%clk 0:02:41]} 11. g3 {[%clk 0:02:55]}  Bg7 {[%clk 0:02:38]} 12. Bg2 {[%clk 0:02:56]}  O-O {[%clk 0:02:38]} 13. O-O {[%clk 0:02:56]}  Rab8 {[%clk 0:02:35]} 14. Nd2 {[%clk 0:02:52]}  Rfd8 {[%clk 0:02:24]} 15. Nb3 {[%clk 0:02:51]}  Nd5 {[%clk 0:02:18]} 16. c3 {[%clk 0:02:51]}  Be8 {[%clk 0:01:56]} 17. Re1 {[%clk 0:02:49]}  e5 {[%clk 0:01:53]} 18. Bg5 {[%clk 0:02:40]}  f6 {[%clk 0:01:52]} 19. Bd2 {[%clk 0:02:37]}  a5 {[%clk 0:01:43]} 20. Rab1 {[%clk 0:02:12]}  Nb6 {[%clk 0:01:35]} 21. Rbd1 {[%clk 0:02:00]}  Nc4 {[%clk 0:01:29]} 22. Bc1 {[%clk 0:02:00]}  Bf8 {[%clk 0:01:22]} 23. Bf1 {[%clk 0:01:50]}  Bf7 {[%clk 0:01:17]} 24. Be2 {[%clk 0:01:33]}  a4 {[%clk 0:01:14]} 25. Na1 {[%clk 0:01:26]}  Rxd1 {[%clk 0:01:07]} 26. Rxd1 {[%clk 0:01:25]}  Nxb2 {[%clk 0:01:07]} 27. Rd7 {[%clk 0:01:21]}  Bxa2 {[%clk 0:01:02]} 28. Rd2 {[%clk 0:01:15]}  a3 {[%clk 0:01:01]} 29. Nc2 {[%clk 0:01:15]}  Bd5 {[%clk 0:00:57]} 30. Nb4 {[%clk 0:01:15]}  Bxb4 {[%clk 0:00:55]} 31. cxb4 {[%clk 0:01:16]}  Rxb4 {[%clk 0:00:56]} 32. Rc2 {[%clk 0:01:04]}  a2 {[%clk 0:00:55]} 0-1


[Site "https://www.chess.com"]

[Event "Titled Tuesday Blitz July 11 Early 2023"]
[White "Materia, Marco"]
[Black "Garagulya, Konstantin"]
[WhiteFideId "45150451"]
[BlackFideId "4128931"]
[WhiteElo "2646"]
[BlackElo "2378"]
[Result "1-0"]
[Round "1"]
[TimeControl "180+2"]
[Date "2023.07.11"]
[WhiteClock "0:00:50"]
[BlackClock "0:00:00"]
[Board "112"]

1. d4 {[%clk 0:03:00]}  Nf6 {[%clk 0:02:58]} 2. c4 {[%clk 0:03:01]}  e6 {[%clk 0:02:59]} 3. Nf3 {[%clk 0:03:01]}  d5 {[%clk 0:03:00]} 4. Nc3 {[%clk 0:03:01]}  Be7 {[%clk 0:03:00]} 5. Bf4 {[%clk 0:03:01]}  O-O {[%clk 0:03:01]} 6. e3 {[%clk 0:03:01]}  b6 {[%clk 0:03:01]} 7. Rc1 {[%clk 0:03:00]}  Bb7 {[%clk 0:03:01]} 8. cxd5 {[%clk 0:02:51]}  exd5 {[%clk 0:03:00]} 9. Be2 {[%clk 0:02:50]}  c5 {[%clk 0:03:00]} 10. O-O {[%clk 0:02:51]}  Nbd7 {[%clk 0:02:58]} 11. Ne5 {[%clk 0:02:49]}  a6 {[%clk 0:02:56]} 12. Bf3 {[%clk 0:02:47]}  cxd4 {[%clk 0:02:49]} 13. exd4 {[%clk 0:02:44]}  Rc8 {[%clk 0:02:49]} 14. Re1 {[%clk 0:02:43]}  b5 {[%clk 0:02:48]} 15. a3 {[%clk 0:02:40]}  Nb6 {[%clk 0:02:45]} 16. Nd3 {[%clk 0:02:11]}  Nc4 {[%clk 0:02:43]} 17. a4 {[%clk 0:02:11]}  b4 {[%clk 0:02:31]} 18. Ne2 {[%clk 0:02:11]}  Qb6 {[%clk 0:02:17]} 19. Ng3 {[%clk 0:02:09]}  Rfe8 {[%clk 0:02:12]} 20. b3 {[%clk 0:02:04]}  Na5 {[%clk 0:01:59]} 21. Rxc8 {[%clk 0:02:02]}  Bxc8 {[%clk 0:01:59]} 22. Ne5 {[%clk 0:01:53]}  Be6 {[%clk 0:01:54]} 23. Qd3 {[%clk 0:01:50]}  Rc8 {[%clk 0:01:53]} 24. Rc1 {[%clk 0:01:47]}  Rc3 {[%clk 0:01:22]} 25. Rxc3 {[%clk 0:01:45]}  bxc3 {[%clk 0:01:23]} 26. Qxc3 {[%clk 0:01:45]}  Nxb3 {[%clk 0:01:24]} 27. Nc6 {[%clk 0:01:41]}  Bf8 {[%clk 0:01:18]} 28. a5 {[%clk 0:01:33]}  Qb5 {[%clk 0:01:15]} 29. Be2 {[%clk 0:01:32]}  Qa4 {[%clk 0:01:13]} 30. Bxa6 {[%clk 0:01:28]}  Ne4 {[%clk 0:01:05]} 31. Nxe4 {[%clk 0:01:27]}  dxe4 {[%clk 0:01:06]} 32. Bb7 {[%clk 0:01:16]}  Bd7 {[%clk 0:00:37]} 33. h3 {[%clk 0:01:09]}  h6 {[%clk 0:00:24]} 34. a6 {[%clk 0:01:07]}  Bxc6 {[%clk 0:00:21]} 35. Qxc6 {[%clk 0:01:03]}  Qxd4 {[%clk 0:00:21]} 36. Qxe4 {[%clk 0:01:01]}  Qd1+ {[%clk 0:00:18]} 37. Kh2 {[%clk 0:01:00]}  Nc5 {[%clk 0:00:19]} 38. Qc6 {[%clk 0:00:57]}  Qa1 {[%clk 0:00:14]} 39. Qc8 {[%clk 0:00:51]}  Ne6 {[%clk 0:00:09]} 40. Bb8 {[%clk 0:00:49]}  Kh7 {[%clk 0:00:07]} 41. a7 {[%clk 0:00:49]}  Bd6+ {[%clk 0:00:08]} 42. Bxd6 {[%clk 0:00:49]}  Qxa7 {[%clk 0:00:08]} 43. Be4+ {[%clk 0:00:49]}  g6 {[%clk 0:00:07]} 44. Be5 {[%clk 0:00:50]}  Ng7 {[%clk 0:00:00]} 45. Qf8 {[%clk 0:00:50]} 1-0


[Site "https://www.chess.com"]

[Event "Titled Tuesday Blitz July 11 Early 2023"]
[White "Katz, Alexander"]
[Black "Bueno, Alfeu Junior Varela"]
[WhiteFideId "2039796"]
[BlackFideId "2108879"]
[WhiteElo "2639"]
[BlackElo "2377"]
[Result "1-0"]
[Round "1"]
[TimeControl "180+2"]
[Date "2023.07.11"]
[WhiteClock "0:00:25"]
[BlackClock "0:00:00"]
[Board "114"]

1. c4 {[%clk 0:02:57]}  e5 {[%clk 0:02:57]} 2. Nc3 {[%clk 0:02:56]}  Nc6 {[%clk 0:02:57]} 3. g3 {[%clk 0:02:56]}  f5 {[%clk 0:02:57]} 4. Bg2 {[%clk 0:02:57]}  Nf6 {[%clk 0:02:58]} 5. d3 {[%clk 0:02:58]}  Bb4 {[%clk 0:02:59]} 6. Nf3 {[%clk 0:02:58]}  Bxc3+ {[%clk 0:02:59]} 7. bxc3 {[%clk 0:02:57]}  d6 {[%clk 0:03:00]} 8. O-O {[%clk 0:02:57]}  O-O {[%clk 0:03:00]} 9. Rb1 {[%clk 0:02:58]}  Rb8 {[%clk 0:02:59]} 10. Ne1 {[%clk 0:02:57]}  Qe8 {[%clk 0:02:57]} 11. Nc2 {[%clk 0:02:57]}  Bd7 {[%clk 0:02:55]} 12. Nb4 {[%clk 0:02:53]}  Nxb4 {[%clk 0:02:39]} 13. cxb4 {[%clk 0:02:50]}  Qh5 {[%clk 0:02:29]} 14. e3 {[%clk 0:02:33]}  Qh6 {[%clk 0:02:19]} 15. b5 {[%clk 0:02:23]}  Qg6 {[%clk 0:02:11]} 16. Ba3 {[%clk 0:01:53]}  f4 {[%clk 0:01:49]} 17. exf4 {[%clk 0:01:52]}  exf4 {[%clk 0:01:49]} 18. c5 {[%clk 0:01:53]}  Ng4 {[%clk 0:01:44]} 19. cxd6 {[%clk 0:01:47]}  cxd6 {[%clk 0:01:35]} 20. Qb3+ {[%clk 0:01:11]}  Kh8 {[%clk 0:01:11]} 21. Qd5 {[%clk 0:01:11]}  fxg3 {[%clk 0:01:04]} 22. fxg3 {[%clk 0:00:42]}  Rxf1+ {[%clk 0:00:22]} 23. Rxf1 {[%clk 0:00:37]}  Qh6 {[%clk 0:00:10]} 24. h3 {[%clk 0:00:36]}  Ne3 {[%clk 0:00:06]} 25. Qxd6 {[%clk 0:00:31]}  Rd8 {[%clk 0:00:00]} 26. Rf8+ {[%clk 0:00:25]} 1-0


[Site "https://www.chess.com"]

[Event "Titled Tuesday Blitz July 11 Early 2023"]
[White "Schwabeneder, Florian"]
[Black "Goldin, Roman"]
[WhiteFideId "1626191"]
[BlackFideId "2803860"]
[WhiteElo "2638"]
[BlackElo "2374"]
[Result "1-0"]
[Round "1"]
[TimeControl "180+2"]
[Date "2023.07.11"]
[WhiteClock "0:00:23"]
[BlackClock "0:00:00"]
[Board "116"]

1. Nf3 {[%clk 0:03:00]}  Nf6 {[%clk 0:02:59]} 2. b3 {[%clk 0:03:00]}  g6 {[%clk 0:02:58]} 3. Bb2 {[%clk 0:02:56]}  Bg7 {[%clk 0:02:58]} 4. g3 {[%clk 0:02:55]}  O-O {[%clk 0:02:55]} 5. Bg2 {[%clk 0:02:50]}  d5 {[%clk 0:02:54]} 6. O-O {[%clk 0:02:46]}  c5 {[%clk 0:02:54]} 7. c4 {[%clk 0:02:41]}  d4 {[%clk 0:02:54]} 8. b4 {[%clk 0:02:41]}  Nfd7 {[%clk 0:02:46]} 9. bxc5 {[%clk 0:02:40]}  e5 {[%clk 0:02:46]} 10. d3 {[%clk 0:02:39]}  Nxc5 {[%clk 0:02:43]} 11. Nfd2 {[%clk 0:02:40]}  Nc6 {[%clk 0:02:41]} 12. Ba3 {[%clk 0:02:37]}  Qb6 {[%clk 0:02:21]} 13. Ne4 {[%clk 0:02:28]}  Nb4 {[%clk 0:02:09]} 14. Nxc5 {[%clk 0:02:11]}  Qxc5 {[%clk 0:02:09]} 15. Nd2 {[%clk 0:02:11]}  a5 {[%clk 0:01:58]} 16. Qa4 {[%clk 0:02:08]}  Bg4 {[%clk 0:01:44]} 17. Rfe1 {[%clk 0:02:00]}  Qc7 {[%clk 0:00:56]} 18. Bxb4 {[%clk 0:01:54]}  Bd7 {[%clk 0:00:44]} 19. Qb3 {[%clk 0:01:49]}  axb4 {[%clk 0:00:43]} 20. Qxb4 {[%clk 0:01:50]}  Rfb8 {[%clk 0:00:41]} 21. a4 {[%clk 0:01:46]}  Bf8 {[%clk 0:00:41]} 22. Qb3 {[%clk 0:01:35]}  Qa5 {[%clk 0:00:32]} 23. Ne4 {[%clk 0:01:33]}  Bxa4 {[%clk 0:00:28]} 24. Qb1 {[%clk 0:01:15]}  Kg7 {[%clk 0:00:28]} 25. Rc1 {[%clk 0:01:00]}  f5 {[%clk 0:00:28]} 26. Ng5 {[%clk 0:00:59]}  Be7 {[%clk 0:00:16]} 27. Nf3 {[%clk 0:00:56]}  b5 {[%clk 0:00:10]} 28. cxb5 {[%clk 0:00:38]}  Rxb5 {[%clk 0:00:10]} 29. Qa2 {[%clk 0:00:37]}  Qb6 {[%clk 0:00:06]} 30. Rab1 {[%clk 0:00:29]}  Raa5 {[%clk 0:00:00]} 31. Nxe5 {[%clk 0:00:23]} 1-0


[Site "https://www.chess.com"]